[Event "Early-Titled-Tuesday-Blitz-February-06-2024"]
[Site "Chess.com"]
[Date "2024.02.06"]
[Round "1"]
[White "DucksParadise"]
[Black "Polish_fighter3000"]
[Result "0-1"]
[WhiteElo "2524"]
[BlackElo "3055"]
[TimeControl "180+1"]
[EndTime "8:09:41 PST"]
[Termination "Polish_fighter3000 won by resignation"]

1. Nf3 {[%clk 0:03:00.9]} 1... Nf6 {[%clk 0:02:59.2]} 2. g3 {[%clk 0:03:01]}
2... b5 {[%clk 0:02:58.4]} 3. Na3 {[%clk 0:02:59.6]} 3... a6 {[%clk 0:02:56.1]}
4. c3 {[%clk 0:02:59.7]} 4... Bb7 {[%clk 0:02:54.4]} 5. c4 {[%clk 0:02:59.6]}
5... bxc4 {[%clk 0:02:29.8]} 6. Nxc4 {[%clk 0:03:00.5]} 6... Bxf3 {[%clk
0:02:29.9]} 7. exf3 {[%clk 0:03:00.9]} 7... e6 {[%clk 0:02:29.9]} 8. Bg2 {[%clk
0:03:00.9]} 8... a5 {[%clk 0:02:28.2]} 9. f4 {[%clk 0:02:58.3]} 9... c6 {[%clk
0:02:27.9]} 10. O-O {[%clk 0:02:56.8]} 10... Be7 {[%clk 0:02:25]} 11. d4 {[%clk
0:02:54.1]} 11... Na6 {[%clk 0:02:24.2]} 12. Be3 {[%clk 0:02:46.7]} 12... O-O
{[%clk 0:02:22.6]} 13. a3 {[%clk 0:02:41.1]} 13... Nc7 {[%clk 0:02:21.4]} 14.
Rc1 {[%clk 0:02:39.2]} 14... Ncd5 {[%clk 0:02:15.7]} 15. Ne5 {[%clk 0:02:35.2]}
15... Qb6 {[%clk 0:02:12.1]} 16. Qe2 {[%clk 0:02:31.4]} 16... Rfb8 {[%clk
0:02:11.2]} 17. Rc2 {[%clk 0:02:28.7]} 17... Qb5 {[%clk 0:02:10]} 18. Qxb5
{[%clk 0:02:25.9]} 18... Rxb5 {[%clk 0:02:10.9]} 19. Rfc1 {[%clk 0:02:21]} 19...
Rab8 {[%clk 0:02:09.3]} 20. Nc4 {[%clk 0:02:18.7]} 20... Nb6 {[%clk 0:01:51.5]}
21. Nxb6 {[%clk 0:02:16.9]} 21... R5xb6 {[%clk 0:01:50.1]} 22. d5 {[%clk
0:02:15.5]} 22... exd5 {[%clk 0:01:39.9]} 23. Bxb6 {[%clk 0:02:13.8]} 23... Rxb6
{[%clk 0:01:40.8]} 24. h3 {[%clk 0:02:00.9]} 24... Kf8 {[%clk 0:01:40.2]} 25. g4
{[%clk 0:02:00.6]} 25... Bd6 {[%clk 0:01:35.6]} 26. f5 {[%clk 0:01:56.3]} 26...
h6 {[%clk 0:01:34]} 27. Bf1 {[%clk 0:01:51.3]} 27... Be5 {[%clk 0:01:27.4]} 28.
Rb1 {[%clk 0:01:49.9]} 28... Ne4 {[%clk 0:01:20.8]} 29. b4 {[%clk 0:01:40.4]}
29... Bd6 {[%clk 0:01:13.1]} 30. b5 {[%clk 0:01:27.3]} 30... Bxa3 {[%clk
0:01:09]} 31. bxc6 {[%clk 0:01:09.9]} 31... Rxb1 {[%clk 0:01:08]} 32. c7 {[%clk
0:01:09.9]} 32... Nd6 {[%clk 0:01:08.5]} 33. c8=Q+ {[%clk 0:01:09.8]} 33... Nxc8
{[%clk 0:01:07.4]} 34. Rxc8+ {[%clk 0:01:10.7]} 34... Ke7 {[%clk 0:01:07.8]} 35.
Kg2 {[%clk 0:01:10.9]} 35... Rb2 {[%clk 0:00:52.6]} 36. Bd3 {[%clk 0:01:07.3]}
36... Rd2 {[%clk 0:00:47.6]} 37. Bc2 {[%clk 0:01:01.9]} 37... Kd6 {[%clk
0:00:47.4]} 38. f6 {[%clk 0:00:55.6]} 38... gxf6 {[%clk 0:00:46.6]} 39. Bf5
{[%clk 0:00:51.1]} 39... Bc5 {[%clk 0:00:45.3]} 40. Rd8 {[%clk 0:00:51.1]} 40...
Rxf2+ {[%clk 0:00:38.7]} 41. Kg3 {[%clk 0:00:51.2]} 41... Rb2 {[%clk 0:00:37.4]}
42. Rxd7+ {[%clk 0:00:50.3]} 42... Ke5 {[%clk 0:00:38]} 43. Rxf7 {[%clk
0:00:46.6]} 43... Rb3+ {[%clk 0:00:37.4]} 44. Kh4 {[%clk 0:00:42.1]} 44... Bf2+
{[%clk 0:00:36.3]} 45. Kh5 {[%clk 0:00:42.4]} 45... Rxh3+ {[%clk 0:00:36.9]} 46.
Kg6 {[%clk 0:00:42.8]} 46... Bh4 {[%clk 0:00:30.9]} 47. Kxh6 {[%clk 0:00:38.6]}
47... Bg5+ {[%clk 0:00:29.3]} 48. Kg6 {[%clk 0:00:35.9]} 48... a4 {[%clk
0:00:29.2]} 49. Ra7 {[%clk 0:00:32.5]} 49... a3 {[%clk 0:00:28.6]} 50. Ra5
{[%clk 0:00:32.3]} 50... Rc3 {[%clk 0:00:27.6]} 51. Bb1 {[%clk 0:00:29.3]} 51...
Kf4 {[%clk 0:00:14.6]} 52. Rxd5 {[%clk 0:00:22.3]} 52... Kxg4 {[%clk 0:00:15.1]}
53. Ra5 {[%clk 0:00:18.8]} 53... Kf3 {[%clk 0:00:15]} 54. Bf5 {[%clk 0:00:17.9]}
54... Ke3 {[%clk 0:00:14.1]} 55. Be6 {[%clk 0:00:16.4]} 55... Kd2 {[%clk
0:00:14.1]} 56. Ra4 {[%clk 0:00:16.1]} 56... Kc1 {[%clk 0:00:13.6]} 57. Ra6
{[%clk 0:00:15]} 57... Re3 {[%clk 0:00:10.9]} 58. Bf7 {[%clk 0:00:14.7]} 58...
Kd2 {[%clk 0:00:10.5]} 59. Rd6+ {[%clk 0:00:14.2]} 59... Ke2 {[%clk 0:00:10.4]}
60. Ra6 {[%clk 0:00:15.1]} 60... Kf3 {[%clk 0:00:10.6]} 61. Rc6 {[%clk 0:00:15]}
61... Kg4 {[%clk 0:00:09.3]} 62. Ra6 {[%clk 0:00:15.2]} 62... Bh4 {[%clk
0:00:06.8]} 63. Be6+ {[%clk 0:00:14.9]} 63... Kg3 {[%clk 0:00:06.8]} 64. Bf5
{[%clk 0:00:14.9]} 64... Kf2 {[%clk 0:00:06.3]} 65. Be6 {[%clk 0:00:14.3]} 65...
Bg5 {[%clk 0:00:05.8]} 66. Bf7 {[%clk 0:00:14.5]} 66... Kf3 {[%clk 0:00:05.9]}
67. Be6 {[%clk 0:00:14.5]} 67... Ke4 {[%clk 0:00:06.2]} 68. Bf5+ {[%clk
0:00:14.3]} 68... Ke5 {[%clk 0:00:06.8]} 69. Be6 {[%clk 0:00:14.3]} 69... Rf3
{[%clk 0:00:06.4]} 70. Bf7 {[%clk 0:00:13.8]} 70... Kd4 {[%clk 0:00:04.8]} 71.
Be6 {[%clk 0:00:13.8]} 71... Kc5 {[%clk 0:00:04.9]} 72. Bf7 {[%clk 0:00:13.9]}
72... Kb5 {[%clk 0:00:05.1]} 73. Ra8 {[%clk 0:00:14]} 73... Bh4 {[%clk
0:00:04.1]} 74. Be6 {[%clk 0:00:13.3]} 74... Be1 {[%clk 0:00:03.6]} 75. Bf5
{[%clk 0:00:12.6]} 75... Bh4 {[%clk 0:00:02.4]} 76. Bd7+ {[%clk 0:00:12.4]}
76... Kc5 {[%clk 0:00:02.5]} 77. Be6 {[%clk 0:00:12.8]} 77... Kd6 {[%clk
0:00:03]} 78. Bf7 {[%clk 0:00:12.9]} 78... Rg3+ {[%clk 0:00:03.7]} 79. Kf5
{[%clk 0:00:12.7]} 79... Bg5 {[%clk 0:00:04.4]} 80. Kg6 {[%clk 0:00:12.6]} 80...
Rf3 {[%clk 0:00:04.5]} 81. Bc4 {[%clk 0:00:11.5]} 81... Bc1 {[%clk 0:00:04.4]}
82. Bf7 {[%clk 0:00:11.4]} 82... Bb2 {[%clk 0:00:04.3]} 83. Ba2 {[%clk
0:00:10.4]} 83... Ke5 {[%clk 0:00:04.5]} 84. Re8+ {[%clk 0:00:10]} 84... Kf4
{[%clk 0:00:04.8]} 85. Ra8 {[%clk 0:00:09.5]} 85... Kg3 {[%clk 0:00:05.1]} 86.
Ra5 {[%clk 0:00:09]} 86... Rf2 {[%clk 0:00:05.1]} 87. Be6 {[%clk 0:00:08.4]}
87... Kf4 {[%clk 0:00:05.4]} 88. Rf5+ {[%clk 0:00:07.9]} 88... Ke3 {[%clk
0:00:05.5]} 89. Rxf2 {[%clk 0:00:06.6]} 89... Kxf2 {[%clk 0:00:06.4]} 90. Kf5
{[%clk 0:00:05.7]} 90... Ke3 {[%clk 0:00:07]} 91. Ba2 {[%clk 0:00:05.6]} 91...
Be5 {[%clk 0:00:07.1]} 92. Be6 {[%clk 0:00:04.6]} 92... Kd4 {[%clk 0:00:08]} 93.
Kg4 {[%clk 0:00:04.1]} 93... Kc3 {[%clk 0:00:08.9]} 94. Kf3 {[%clk 0:00:04.4]}
94... Kb2 {[%clk 0:00:09.6]} 95. Ke2 {[%clk 0:00:05]} 95... a2 {[%clk
0:00:10.5]} 0-1

[Event "Early-Titled-Tuesday-Blitz-February-06-2024"]
[Site "Chess.com"]
[Date "2024.02.06"]
[Round "2"]
[White "Chessdude1987"]
[Black "Mourinho_Jose"]
[Result "1-0"]
[WhiteElo "2283"]
[BlackElo "2479"]
[TimeControl "180+1"]
[EndTime "8:11:40 PST"]
[Termination "Chessdude1987 won by resignation"]

1. e4 {[%clk 0:03:00.9]} 1... c5 {[%clk 0:02:56.7]} 2. Nf3 {[%clk 0:03:00.7]}
2... Nc6 {[%clk 0:02:56.5]} 3. d4 {[%clk 0:02:57.8]} 3... cxd4 {[%clk
0:02:57.4]} 4. Nxd4 {[%clk 0:02:58]} 4... d6 {[%clk 0:02:55.7]} 5. g3 {[%clk
0:02:56.6]} 5... Nf6 {[%clk 0:02:55.8]} 6. Bg2 {[%clk 0:02:56.6]} 6... e6 {[%clk
0:02:52.4]} 7. O-O {[%clk 0:02:55.8]} 7... Be7 {[%clk 0:02:52.6]} 8. Re1 {[%clk
0:02:55.1]} 8... O-O {[%clk 0:02:53.1]} 9. Nxc6 {[%clk 0:02:50.3]} 9... bxc6
{[%clk 0:02:53.1]} 10. e5 {[%clk 0:02:50]} 10... Nd5 {[%clk 0:02:51]} 11. c4
{[%clk 0:02:49.3]} 11... Nb6 {[%clk 0:02:50.8]} 12. exd6 {[%clk 0:02:48.4]}
12... Rb8 {[%clk 0:02:51.1]} 13. dxe7 {[%clk 0:02:47.6]} 13... Qxe7 {[%clk
0:02:51.1]} 14. Bf4 {[%clk 0:02:40.2]} 14... Ra8 {[%clk 0:02:45.2]} 15. Bd6
{[%clk 0:02:37.8]} 15... Bb7 {[%clk 0:02:45.9]} 16. Bxe7 {[%clk 0:02:37.6]} 1-0

[Event "Early-Titled-Tuesday-Blitz-February-06-2024"]
[Site "Chess.com"]
[Date "2024.02.06"]
[Round "2"]
[White "KetiTsatsalashvili"]
[Black "miraitrunks"]
[Result "1-0"]
[WhiteElo "2432"]
[BlackElo "2124"]
[TimeControl "180+1"]
[EndTime "8:12:30 PST"]
[Termination "KetiTsatsalashvili won by resignation"]

1. d4 {[%clk 0:03:00.9]} 1... Nf6 {[%clk 0:02:58.5]} 2. Nf3 {[%clk 0:03:00.8]}
2... g6 {[%clk 0:02:52.5]} 3. c4 {[%clk 0:03:00]} 3... c5 {[%clk 0:02:51.8]} 4.
d5 {[%clk 0:02:57.4]} 4... b5 {[%clk 0:02:51.8]} 5. cxb5 {[%clk 0:02:56.5]} 5...
a6 {[%clk 0:02:51.8]} 6. b6 {[%clk 0:02:57]} 6... Qxb6 {[%clk 0:02:51.7]} 7. Nc3
{[%clk 0:02:57.5]} 7... Bg7 {[%clk 0:02:51.2]} 8. a4 {[%clk 0:02:57.8]} 8... d6
{[%clk 0:02:50.7]} 9. a5 {[%clk 0:02:56.6]} 9... Qb4 {[%clk 0:02:49.9]} 10. Ra4
{[%clk 0:02:47.4]} 10... Qb7 {[%clk 0:02:45.4]} 11. g3 {[%clk 0:02:44.3]} 11...
O-O {[%clk 0:02:45.3]} 12. Bg2 {[%clk 0:02:44.1]} 12... Nbd7 {[%clk 0:02:42.3]}
13. O-O {[%clk 0:02:42.4]} 13... Ng4 {[%clk 0:02:36]} 14. Nd2 {[%clk 0:02:32.4]}
14... h5 {[%clk 0:02:33.5]} 15. h3 {[%clk 0:02:30.5]} 15... Nge5 {[%clk
0:02:33.4]} 16. f4 {[%clk 0:02:27.7]} 1-0

[Event "Early-Titled-Tuesday-Blitz-February-06-2024"]
[Site "Chess.com"]
[Date "2024.02.06"]
[Round "2"]
[White "ulises2013"]
[Black "Casper"]
[Result "1-0"]
[WhiteElo "2734"]
[BlackElo "2519"]
[TimeControl "180+1"]
[EndTime "8:13:05 PST"]
[Termination "ulises2013 won by resignation"]

1. e4 {[%clk 0:03:00.9]} 1... g6 {[%clk 0:02:59.1]} 2. g3 {[%clk 0:03:01.1]}
2... Bg7 {[%clk 0:03:00]} 3. Bg2 {[%clk 0:03:01.7]} 3... c5 {[%clk 0:03:00.5]}
4. Ne2 {[%clk 0:03:02]} 4... Nc6 {[%clk 0:03:01.2]} 5. O-O {[%clk 0:03:01.8]}
5... d6 {[%clk 0:03:01.7]} 6. c3 {[%clk 0:03:02.2]} 6... e5 {[%clk 0:03:00.2]}
7. d3 {[%clk 0:03:02.6]} 7... f5 {[%clk 0:02:59.9]} 8. Be3 {[%clk 0:03:01]} 8...
Nf6 {[%clk 0:02:59.9]} 9. h3 {[%clk 0:03:00.1]} 9... O-O {[%clk 0:02:58.5]} 10.
Kh2 {[%clk 0:02:59.9]} 10... h6 {[%clk 0:02:55.4]} 11. f4 {[%clk 0:02:59.2]}
11... Kh7 {[%clk 0:02:55.1]} 12. Nd2 {[%clk 0:02:59.2]} 12... b5 {[%clk
0:02:51.4]} 13. exf5 {[%clk 0:02:59]} 13... Qe8 {[%clk 0:02:45.3]} 14. fxg6+
{[%clk 0:02:58.6]} 14... Kxg6 {[%clk 0:02:45.5]} 15. fxe5 {[%clk 0:02:55.2]}
15... Nh5 {[%clk 0:02:39]} 16. Nf4+ {[%clk 0:02:49.9]} 16... Nxf4 {[%clk
0:02:38.2]} 17. Bxf4 {[%clk 0:02:49.2]} 17... dxe5 {[%clk 0:02:38.4]} 18. Be3
{[%clk 0:02:45.4]} 18... Bf5 {[%clk 0:02:33.8]} 19. Bxc5 {[%clk 0:02:31.5]}
19... Rf7 {[%clk 0:02:33.9]} 20. Ne4 {[%clk 0:02:28]} 20... Bf8 {[%clk
0:02:20.1]} 21. Rxf5 {[%clk 0:02:16.4]} 21... Rxf5 {[%clk 0:02:06]} 22. Qg4+
{[%clk 0:02:16.1]} 22... Rg5 {[%clk 0:02:06]} 23. Nxg5 {[%clk 0:02:16.3]} 23...
hxg5 {[%clk 0:02:05]} 24. Bxf8 {[%clk 0:02:14.1]} 24... Qxf8 {[%clk 0:02:04]}
25. Qe4+ {[%clk 0:02:14]} 1-0

[Event "Early-Titled-Tuesday-Blitz-February-06-2024"]
[Site "Chess.com"]
[Date "2024.02.06"]
[Round "2"]
[White "Caroexpert"]
[Black "Chesstiger64"]
[Result "0-1"]
[WhiteElo "2567"]
[BlackElo "2262"]
[TimeControl "180+1"]
[EndTime "8:13:10 PST"]
[Termination "Chesstiger64 won by resignation"]

1. d4 {[%clk 0:03:00.9]} 1... e6 {[%clk 0:02:59.6]} 2. Bf4 {[%clk 0:03:00.3]}
2... c5 {[%clk 0:02:59.4]} 3. e3 {[%clk 0:02:48.4]} 3... b6 {[%clk 0:02:59.1]}
4. Qf3 {[%clk 0:02:47.2]} 4... Nc6 {[%clk 0:02:57.9]} 5. Nc3 {[%clk 0:02:46.2]}
5... Nf6 {[%clk 0:02:57.7]} 6. Nb5 {[%clk 0:02:44.9]} 6... Nd5 {[%clk
0:02:49.5]} 7. Bd6 {[%clk 0:02:36]} 7... a6 {[%clk 0:02:45.4]} 8. Bxf8 {[%clk
0:02:24]} 8... Kxf8 {[%clk 0:02:41.8]} 9. Nd6 {[%clk 0:02:24.3]} 9... Qe7 {[%clk
0:02:33.7]} 10. dxc5 {[%clk 0:02:21.1]} 10... bxc5 {[%clk 0:02:16.4]} 11. Ne4
{[%clk 0:01:59.7]} 11... f5 {[%clk 0:02:06.5]} 12. g4 {[%clk 0:01:57.9]} 12...
Ne5 {[%clk 0:01:58.4]} 13. Qf4 {[%clk 0:01:55.5]} 13... Nxf4 {[%clk 0:01:57.3]}
0-1

[Event "Early-Titled-Tuesday-Blitz-February-06-2024"]
[Site "Chess.com"]
[Date "2024.02.06"]
[Round "2"]
[White "HeroWilczek"]
[Black "Bekkedahl"]
[Result "1-0"]
[WhiteElo "2477"]
[BlackElo "2247"]
[TimeControl "180+1"]
[EndTime "8:13:22 PST"]
[Termination "HeroWilczek won by resignation"]

1. e4 {[%clk 0:03:00.9]} 1... c5 {[%clk 0:02:32.6]} 2. Nf3 {[%clk 0:03:00.6]}
2... g6 {[%clk 0:02:32.5]} 3. c3 {[%clk 0:03:00.3]} 3... Bg7 {[%clk 0:02:32.4]}
4. d4 {[%clk 0:03:01]} 4... cxd4 {[%clk 0:02:33]} 5. cxd4 {[%clk 0:03:01.9]}
5... d5 {[%clk 0:02:32.3]} 6. e5 {[%clk 0:03:00]} 6... Bg4 {[%clk 0:02:29.8]} 7.
Nc3 {[%clk 0:03:00.1]} 7... Nh6 {[%clk 0:02:28.9]} 8. Bd3 {[%clk 0:02:55.4]}
8... O-O {[%clk 0:02:28.3]} 9. h3 {[%clk 0:02:55]} 9... Bxf3 {[%clk 0:02:28]}
10. Qxf3 {[%clk 0:02:55.9]} 10... e6 {[%clk 0:02:24.3]} 11. O-O {[%clk
0:02:55.8]} 11... Nc6 {[%clk 0:02:22.9]} 12. Be3 {[%clk 0:02:54.3]} 12... Nf5
{[%clk 0:02:20.3]} 13. Bxf5 {[%clk 0:02:54.6]} 13... exf5 {[%clk 0:02:15.3]} 14.
Nxd5 {[%clk 0:02:48.1]} 14... f6 {[%clk 0:01:59.1]} 15. exf6 {[%clk 0:02:23.9]}
15... Bxf6 {[%clk 0:01:57.7]} 16. Nxf6+ {[%clk 0:02:23.3]} 16... Qxf6 {[%clk
0:01:58.6]} 17. Rfd1 {[%clk 0:02:23.3]} 17... Rad8 {[%clk 0:01:57.3]} 18. d5
{[%clk 0:02:16]} 18... Ne5 {[%clk 0:01:50.7]} 19. Qe2 {[%clk 0:02:12.7]} 19...
f4 {[%clk 0:01:51.3]} 20. Bd4 {[%clk 0:02:09.7]} 20... f3 {[%clk 0:01:50.2]} 21.
Qxe5 {[%clk 0:02:07.5]} 1-0

[Event "Early-Titled-Tuesday-Blitz-February-06-2024"]
[Site "Chess.com"]
[Date "2024.02.06"]
[Round "2"]
[White "RamonManon0g"]
[Black "Arystanner"]
[Result "1-0"]
[WhiteElo "2412"]
[BlackElo "2878"]
[TimeControl "180+1"]
[EndTime "8:13:23 PST"]
[Termination "RamonManon0g won by checkmate"]

1. e4 {[%clk 0:02:53.6]} 1... e5 {[%clk 0:02:59.7]} 2. Nf3 {[%clk 0:02:53.3]}
2... Nf6 {[%clk 0:03:00.4]} 3. d4 {[%clk 0:02:52.9]} 3... Nxe4 {[%clk
0:02:55.7]} 4. Nxe5 {[%clk 0:02:51.1]} 4... d6 {[%clk 0:02:54.8]} 5. Nf3 {[%clk
0:02:50.7]} 5... d5 {[%clk 0:02:55.5]} 6. c4 {[%clk 0:02:50.5]} 6... c6 {[%clk
0:02:55.2]} 7. Nc3 {[%clk 0:02:50.7]} 7... Bb4 {[%clk 0:02:54.5]} 8. Qc2 {[%clk
0:02:46]} 8... O-O {[%clk 0:02:53.6]} 9. Bd3 {[%clk 0:02:45.7]} 9... Nxc3 {[%clk
0:02:50.3]} 10. bxc3 {[%clk 0:02:43.4]} 10... Re8+ {[%clk 0:02:49.8]} 11. Be3
{[%clk 0:02:43.4]} 11... Bd6 {[%clk 0:02:50.5]} 12. Bxh7+ {[%clk 0:02:42.8]}
12... Kf8 {[%clk 0:02:51.2]} 13. Bf5 {[%clk 0:02:40.9]} 13... dxc4 {[%clk
0:02:50]} 14. O-O {[%clk 0:02:38.4]} 14... Nd7 {[%clk 0:02:45.9]} 15. Bg5 {[%clk
0:02:26.7]} 15... Qc7 {[%clk 0:02:45.5]} 16. Rfe1 {[%clk 0:02:24.2]} 16... Rxe1+
{[%clk 0:02:45.6]} 17. Rxe1 {[%clk 0:02:23.6]} 17... Nb6 {[%clk 0:02:46.5]} 18.
Bxc8 {[%clk 0:02:19.3]} 18... Qxc8 {[%clk 0:02:47.4]} 19. Qh7 {[%clk 0:02:18.8]}
19... f6 {[%clk 0:02:42.1]} 20. Bxf6 {[%clk 0:01:55.7]} 20... Qg4 {[%clk
0:02:41.1]} 21. Nh4 {[%clk 0:01:49]} 21... Kf7 {[%clk 0:02:33.7]} 22. h3 {[%clk
0:01:45.5]} 22... Re8 {[%clk 0:02:30.8]} 23. Be5 {[%clk 0:01:32.7]} 23... Qe6
{[%clk 0:02:24.6]} 24. Qxg7# {[%clk 0:01:31.6]} 1-0

[Event "Early-Titled-Tuesday-Blitz-February-06-2024"]
[Site "Chess.com"]
[Date "2024.02.06"]
[Round "2"]
[White "kleinebeer98"]
[Black "Lady_Nika"]
[Result "0-1"]
[WhiteElo "2836"]
[BlackElo "2598"]
[TimeControl "180+1"]
[EndTime "8:13:29 PST"]
[Termination "Lady_Nika won by checkmate"]

1. e4 {[%clk 0:02:59.8]} 1... e6 {[%clk 0:02:59.9]} 2. d4 {[%clk 0:02:58.9]}
2... d5 {[%clk 0:03:00.3]} 3. Nc3 {[%clk 0:02:59.8]} 3... Nf6 {[%clk 0:02:59.8]}
4. Bg5 {[%clk 0:03:00]} 4... Be7 {[%clk 0:03:00.2]} 5. e5 {[%clk 0:03:00.3]}
5... Nfd7 {[%clk 0:03:00.6]} 6. h4 {[%clk 0:03:00.9]} 6... h6 {[%clk 0:03:00.8]}
7. Bxe7 {[%clk 0:03:01]} 7... Qxe7 {[%clk 0:03:01.7]} 8. f4 {[%clk 0:03:01.1]}
8... a6 {[%clk 0:03:00.9]} 9. Nf3 {[%clk 0:02:59.7]} 9... c5 {[%clk 0:03:00.7]}
10. Ne2 {[%clk 0:02:59.1]} 10... cxd4 {[%clk 0:03:00.3]} 11. Nexd4 {[%clk
0:02:58.9]} 11... Nc6 {[%clk 0:03:00.7]} 12. Bd3 {[%clk 0:02:58.7]} 12... Nxd4
{[%clk 0:02:56.6]} 13. Nxd4 {[%clk 0:02:59.6]} 13... Qb4+ {[%clk 0:02:56.5]} 14.
c3 {[%clk 0:03:00.1]} 14... Qxb2 {[%clk 0:02:55.7]} 15. O-O {[%clk 0:03:00.1]}
15... Qxc3 {[%clk 0:02:48.8]} 16. Nb3 {[%clk 0:02:54.9]} 16... Qb4 {[%clk
0:02:44.1]} 17. Rc1 {[%clk 0:02:51.8]} 17... O-O {[%clk 0:02:37.6]} 18. Rf3
{[%clk 0:02:44.9]} 18... f6 {[%clk 0:02:27.2]} 19. exf6 {[%clk 0:02:37.9]} 19...
Nxf6 {[%clk 0:02:24]} 20. Bb1 {[%clk 0:02:29.3]} 20... Bd7 {[%clk 0:02:19.6]}
21. Nc5 {[%clk 0:02:26.5]} 21... Rac8 {[%clk 0:01:53.4]} 22. Rb3 {[%clk
0:02:26.7]} 22... Qxf4 {[%clk 0:01:52.7]} 23. Rxb7 {[%clk 0:02:27.1]} 23... Rxc5
{[%clk 0:01:47.8]} 24. Rxc5 {[%clk 0:02:25.1]} 24... Qe3+ {[%clk 0:01:47.5]} 25.
Kh1 {[%clk 0:02:25]} 25... Qxc5 {[%clk 0:01:47.6]} 26. Qd3 {[%clk 0:02:25.6]}
26... Qc1+ {[%clk 0:01:45.3]} 27. Kh2 {[%clk 0:02:25.4]} 27... Ng4+ {[%clk
0:01:42]} 28. Kg3 {[%clk 0:02:26]} 28... Qf4+ {[%clk 0:01:41.5]} 29. Kh3 {[%clk
0:02:26.7]} 29... Nf2# {[%clk 0:01:39.8]} 0-1

[Event "Early-Titled-Tuesday-Blitz-February-06-2024"]
[Site "Chess.com"]
[Date "2024.02.06"]
[Round "2"]
[White "ChessLebaneseSalah"]
[Black "roxannyzoldyck"]
[Result "1-0"]
[WhiteElo "2464"]
[BlackElo "2203"]
[TimeControl "180+1"]
[EndTime "8:13:31 PST"]
[Termination "ChessLebaneseSalah won by resignation"]

1. e4 {[%clk 0:03:00.9]} 1... c5 {[%clk 0:02:59]} 2. Nf3 {[%clk 0:02:58.9]} 2...
d6 {[%clk 0:02:59.4]} 3. d4 {[%clk 0:02:58.6]} 3... cxd4 {[%clk 0:03:00.3]} 4.
Nxd4 {[%clk 0:02:59.1]} 4... Nf6 {[%clk 0:03:00.9]} 5. Nc3 {[%clk 0:02:59.6]}
5... g6 {[%clk 0:03:01.5]} 6. Be3 {[%clk 0:02:57.5]} 6... Bg7 {[%clk 0:03:02.1]}
7. f3 {[%clk 0:02:58]} 7... O-O {[%clk 0:03:02.6]} 8. Qd2 {[%clk 0:02:58.4]}
8... Nc6 {[%clk 0:03:03.2]} 9. O-O-O {[%clk 0:02:58.4]} 9... Nxd4 {[%clk
0:02:58.7]} 10. Bxd4 {[%clk 0:02:58.4]} 10... Be6 {[%clk 0:02:57]} 11. Kb1
{[%clk 0:02:57.4]} 11... b5 {[%clk 0:02:56.2]} 12. h4 {[%clk 0:02:57]} 12... h5
{[%clk 0:02:46.6]} 13. g4 {[%clk 0:02:46.6]} 13... b4 {[%clk 0:02:34.9]} 14. Nd5
{[%clk 0:02:39.4]} 14... Bxd5 {[%clk 0:02:31.5]} 15. exd5 {[%clk 0:02:39.1]}
15... hxg4 {[%clk 0:02:02.2]} 16. h5 {[%clk 0:02:33.4]} 16... Qa5 {[%clk
0:01:39.9]} 17. h6 {[%clk 0:02:15.8]} 1-0

[Event "Early-Titled-Tuesday-Blitz-February-06-2024"]
[Site "Chess.com"]
[Date "2024.02.06"]
[Round "2"]
[White "GMCorinnaKopff"]
[Black "GMaka"]
[Result "1-0"]
[WhiteElo "2350"]
[BlackElo "2513"]
[TimeControl "180+1"]
[EndTime "8:13:50 PST"]
[Termination "GMCorinnaKopff won by resignation"]

1. e4 {[%clk 0:02:52.7]} 1... e5 {[%clk 0:02:56.6]} 2. Nf3 {[%clk 0:02:52.7]}
2... Nc6 {[%clk 0:02:56.8]} 3. Bb5 {[%clk 0:02:52.9]} 3... a6 {[%clk 0:02:55.9]}
4. Ba4 {[%clk 0:02:53.1]} 4... Nf6 {[%clk 0:02:55.9]} 5. O-O {[%clk 0:02:53.1]}
5... b5 {[%clk 0:02:50.2]} 6. Bb3 {[%clk 0:02:52.7]} 6... Be7 {[%clk 0:02:50.1]}
7. Re1 {[%clk 0:02:52.4]} 7... O-O {[%clk 0:02:47.2]} 8. c3 {[%clk 0:02:52.6]}
8... Na5 {[%clk 0:02:40.8]} 9. Bc2 {[%clk 0:02:52.3]} 9... d6 {[%clk 0:02:39.9]}
10. h3 {[%clk 0:02:51.8]} 10... c5 {[%clk 0:02:39.6]} 11. d4 {[%clk 0:02:52]}
11... Qc7 {[%clk 0:02:36.7]} 12. Nbd2 {[%clk 0:02:51.1]} 12... Bb7 {[%clk
0:02:29.3]} 13. dxc5 {[%clk 0:02:50.2]} 13... dxc5 {[%clk 0:02:29.2]} 14. Nf1
{[%clk 0:02:50.3]} 14... Rfd8 {[%clk 0:02:26]} 15. Qe2 {[%clk 0:02:50.2]} 15...
c4 {[%clk 0:02:19.1]} 16. Ng3 {[%clk 0:02:49]} 16... g6 {[%clk 0:02:18.8]} 17.
Nh2 {[%clk 0:02:49.2]} 17... Bc5 {[%clk 0:02:16.5]} 18. Ng4 {[%clk 0:02:45.5]}
18... Nxg4 {[%clk 0:02:16.4]} 19. Qxg4 {[%clk 0:02:46.4]} 19... Nc6 {[%clk
0:02:15.2]} 20. Bg5 {[%clk 0:02:44.2]} 20... Be7 {[%clk 0:02:11.5]} 21. Be3
{[%clk 0:02:30.2]} 21... Qd7 {[%clk 0:02:09.9]} 22. Nf5 {[%clk 0:02:23.5]} 22...
Kh8 {[%clk 0:02:09.8]} 23. Bh6 {[%clk 0:02:02.7]} 23... Bf8 {[%clk 0:02:07.2]}
24. Bg5 {[%clk 0:01:56.3]} 24... Re8 {[%clk 0:01:48]} 25. Bf6+ {[%clk
0:01:50.5]} 1-0

[Event "Early-Titled-Tuesday-Blitz-February-06-2024"]
[Site "Chess.com"]
[Date "2024.02.06"]
[Round "2"]
[White "esrosenberg"]
[Black "Canal_Showdrez"]
[Result "1-0"]
[WhiteElo "2423"]
[BlackElo "2031"]
[TimeControl "180+1"]
[EndTime "8:13:57 PST"]
[Termination "esrosenberg won by resignation"]

1. c4 {[%clk 0:03:00.9]} 1... Nf6 {[%clk 0:02:58.4]} 2. Nf3 {[%clk 0:03:00.9]}
2... g6 {[%clk 0:02:57]} 3. Nc3 {[%clk 0:03:00.8]} 3... Bg7 {[%clk 0:02:57.1]}
4. e4 {[%clk 0:03:00.7]} 4... d6 {[%clk 0:02:56.8]} 5. d4 {[%clk 0:03:01.3]}
5... O-O {[%clk 0:02:55.1]} 6. h3 {[%clk 0:03:02]} 6... a5 {[%clk 0:02:36.8]} 7.
Bd3 {[%clk 0:02:56.2]} 7... Na6 {[%clk 0:02:31.1]} 8. O-O {[%clk 0:02:55.8]}
8... c5 {[%clk 0:02:30.4]} 9. d5 {[%clk 0:02:55.5]} 9... e5 {[%clk 0:02:22.5]}
10. Be3 {[%clk 0:02:47.8]} 10... Nh5 {[%clk 0:02:08.4]} 11. Qd2 {[%clk
0:02:39.2]} 11... f5 {[%clk 0:01:53.1]} 12. exf5 {[%clk 0:02:39.1]} 12... gxf5
{[%clk 0:01:53.5]} 13. Bg5 {[%clk 0:02:38.7]} 13... Qe8 {[%clk 0:01:46.8]} 14.
Nh4 {[%clk 0:02:36.2]} 14... f4 {[%clk 0:01:31.5]} 15. Nb5 {[%clk 0:02:31.9]}
15... h6 {[%clk 0:01:15.9]} 16. Bg6 {[%clk 0:02:31.5]} 16... Rf7 {[%clk
0:01:10.6]} 17. Nxd6 {[%clk 0:02:30.7]} 17... Qf8 {[%clk 0:00:56.6]} 18. Bxf7+
{[%clk 0:02:26.8]} 18... Kh7 {[%clk 0:00:52.7]} 19. Qd3+ {[%clk 0:02:22.8]} 1-0